bitfinex/quotes_SOLUSD_20241205
["timestamp","ask_amount","ask_price","bid_price","bid_amount"]
[1733398252496,23.776884,239.79,239.61,2.9538]
[1733398252697,6.5107,239.77,239.61,2.9538]
[1733398252895,23.776884,239.76,239.56,2.8591]
[1733398254899,23.776884,239.76,239.57,0.62595765]
[1733398255076,6.5107,239.77,239.57,0.62595765]
[1733398256176,2.9576,239.78,239.57,0.62595765]
[1733398256177,2.9576,239.78,239.58,23.776884]
[1733398256598,2.9576,239.78,239.6,23.776884]
[1733398256800,8.2752541,239.82,239.62,2.8885]
[1733398257408,1.7058541,239.82,239.65,2.853]
[1733398257696,6.6466,239.88,239.67,23.776884]
[1733398257908,6.6466,239.88,239.69,23.776884]
[1733398258702,23.776884,239.87,239.69,23.776884]
[1733398259977,1.68999614,239.88,239.69,23.776884]
[1733398260186,23.776884,239.87,239.7,10.03835439]
[1733398261113,2.9101,239.92,239.71,23.776884]
[1733398261399,2.9101,239.92,239.73,23.776884]
[1733398262097,4.57158857,239.92,239.72,0.62544408]
[1733398262298,1.66148857,239.92,239.72,0.62544408]
[1733398262487,6.4204,239.95,239.72,0.62544408]
[1733398263201,23.776884,239.94,239.72,0.62544408]
[1733398264225,23.776884,239.94,239.48,20.66750939]
[1733398264226,23.776884,239.71,239.32,135.7]
[1733398264515,23.776884,239.69,239.4,1.58118801]
[1733398264697,23.776884,239.67,239.41,0.95472799]
[1733398264898,0.62544408,239.66,239.42,0.62623134]
[1733398265098,24.40232808,239.71,239.42,136.32623134]
[1733398265299,24.40232808,239.71,239.43,12.66299596]
[1733398265509,0.62544408,239.71,239.47,148.23750596]
[1733398265694,23.776884,239.74,239.49,135.7]
[1733398265893,23.776884,239.72,239.5,0.62601654]
[1733398266198,2.9865,239.8,239.5,0.62601654]
[1733398266199,23.776884,239.7,239.5,0.62601654]
[1733398266404,23.776884,239.68,239.47,23.776884]
[1733398266606,0.62544408,239.67,239.49,23.776884]
[1733398266820,0.62544408,239.67,239.5,0.62601311]
[1733398267723,0.62544408,239.67,239.51,23.776884]
[1733398267934,4.69670893,239.8,239.53,23.776884]
[1733398267935,0.62544408,239.79,239.53,23.776884]
[1733398269316,23.776884,239.78,239.53,23.776884]
[1733398269495,23.776884,239.76,239.52,23.776884]
[1733398269696,23.776884,239.74,239.52,23.776884]
[1733398269903,23.776884,239.72,239.53,0.62593691]
[1733398270104,23.776884,239.7,239.53,0.62593691]
[1733398270299,0.62544408,239.69,239.53,0.62593691]
[1733398271198,23.776884,239.68,239.53,0.62593691]
[1733398271412,0.62544408,239.67,239.48,136.32600731]
[1733398271614,0.62544408,239.67,239.49,24.40290737]
[1733398272032,0.62544408,239.67,239.49,0.62602337]
[1733398272219,23.776884,239.66,239.49,0.62602337]
[1733398272419,0.62544408,239.65,239.49,0.62602337]
[1733398274227,23.776884,239.64,239.48,135.7]
[1733398274432,0.62544408,239.63,239.45,6.0002]
[1733398274627,0.62544408,239.63,239.46,0.62612256]
[1733398275513,0.62544408,239.63,239.47,23.776884]
[1733398275712,0.62544408,239.69,239.49,23.776884]
[1733398276115,0.62544408,239.79,239.49,23.776884]
[1733398277325,23.776884,239.78,239.49,23.776884]
[1733398277527,0.62544408,239.77,239.49,23.776884]
[1733398277711,23.776884,239.76,239.46,23.776884]
[1733398277911,23.776884,239.74,239.45,6.0002]
[1733398278114,4.6640763,239.8,239.45,6.62634601]
[1733398278115,23.776884,239.72,239.45,6.62634601]
[1733398278311,0.62544408,239.71,239.45,19.16385197]
[1733398278522,24.40232808,239.79,239.45,154.86385197]
[1733398278740,24.40232808,239.79,239.45,141.7002]
[1733398279217,24.40232808,239.79,239.46,23.776884]
[1733398279424,24.40232808,239.79,239.45,141.7002]
[1733398280119,24.40232808,239.79,239.46,0.62614611]
[1733398280943,24.40232808,239.79,239.47,23.776884]
[1733398281109,24.40232808,239.79,239.48,0.62604332]
[1733398282726,0.62544408,239.79,239.49,23.776884]
[1733398282953,0.62544408,239.79,239.51,23.776884]
[1733398283119,0.62544408,239.79,239.52,0.6259783]
[1733398283713,0.62544408,239.79,239.53,23.776884]
[1733398284521,23.776884,239.78,239.54,0.62591229]
[1733398284735,23.776884,239.76,239.54,0.62591229]
[1733398284915,0.62544408,239.75,239.54,0.62591229]
[1733398285237,24.40232808,239.79,239.54,0.62591229]
[1733398285814,0.62544408,239.79,239.55,159.476884]
[1733398286015,0.62544408,239.79,239.57,23.776884]
[1733398287323,23.776884,239.78,239.57,23.776884]
[1733398287531,23.776884,239.76,239.57,23.776884]
[1733398287735,23.776884,239.74,239.57,23.776884]
[1733398287923,0.62544408,239.73,239.57,23.776884]
[1733398288125,23.776884,239.76,239.57,23.776884]
[1733398288323,0.62544408,239.75,239.57,23.776884]
[1733398288731,23.776884,239.77,239.57,23.776884]
[1733398288944,0.62544408,239.76,239.57,23.776884]
[1733398289115,23.776884,239.77,239.57,23.776884]
[1733398289320,0.62544408,239.76,239.58,0.62580003]
[1733398289937,0.62544408,239.78,239.58,0.62580003]
[1733398290135,0.62544408,239.78,239.59,23.776884]
[1733398290333,0.62544408,239.78,239.61,23.776884]
[1733398290516,0.62544408,239.78,239.62,0.62569649]
[1733398290721,4.6640763,239.8,239.62,0.62569649]
[1733398290722,0.62544408,239.79,239.62,0.62569649]
[1733398294638,0.62544408,239.79,239.59,135.7]
[1733398294639,23.776884,239.78,239.59,135.7]
[1733398294841,23.776884,239.76,239.59,135.7]
[1733398295029,0.62544408,239.75,239.59,135.7]
[1733398295236,23.776884,239.76,239.59,135.7]
[1733398295451,0.62544408,239.75,239.6,0.62579311]
[1733398295660,0.62544408,239.77,239.6,0.62579311]
[1733398295834,23.776884,239.76,239.6,0.62579311]
[1733398296034,0.62544408,239.75,239.6,0.62579311]
[1733398296426,0.62544408,239.75,239.61,23.776884]
[1733398296720,4.6640763,239.8,239.62,0.62572398]
[1733398296721,0.62544408,239.77,239.62,0.62572398]
[1733398297621,0.62544408,239.78,239.62,0.62572398]
[1733398298328,23.776884,239.77,239.6,24.40267752]
[1733398298644,0.62544408,239.76,239.6,24.40267752]
[1733398301235,0.62544408,239.76,239.56,23.776884]
[1733398301236,23.776884,239.75,239.56,23.776884]
[1733398301428,23.776884,239.73,239.55,2.7284]
[1733398301619,23.776884,239.71,239.55,2.7284]
[1733398301825,0.62544408,239.7,239.55,2.7284]
[1733398302024,0.62544408,239.7,239.55,3.35431605]
[1733398302343,23.776884,239.71,239.55,3.35431605]
[1733398302540,0.62544408,239.72,239.55,3.35431605]
[1733398302740,0.62544408,239.72,239.56,23.776884]
[1733398302942,0.62544408,239.72,239.57,0.62584599]
[1733398304645,2.28312451,239.72,239.57,0.62584599]
[1733398304852,30.393984,239.71,239.53,0.62588089]
[1733398305029,0.62544408,239.7,239.54,23.776884]
[1733398306234,0.62544408,239.7,239.53,0.62588089]
[1733398308635,0.62544408,239.7,239.54,0.62594228]
[1733398309631,3.2799,239.69,239.53,0.62593143]
[1733398309833,0.62544408,239.68,239.53,0.62593143]
[1733398312131,0.62544408,239.68,239.54,0.6259816]
[1733398312738,23.776884,239.67,239.5,0.62599509]
[1733398313064,6.6037,239.64,239.43,138.814]
[1733398313238,24.40232808,239.63,239.44,0.62617144]
[1733398313748,0.62544408,239.63,239.44,0.62617144]
[1733398313954,26.998084,239.62,239.44,0.62617144]
[1733398314141,23.776884,239.6,239.41,0.62622097]
[1733398314340,0.62544408,239.59,239.41,0.62622097]
[1733398314742,23.776884,239.58,239.41,0.62622097]
[1733398314948,0.62544408,239.57,239.41,0.62622097]
[1733398315257,0.62544408,239.57,239.42,0.62625231]
[1733398316149,0.62544408,239.57,239.4,0.62628099]
[1733398318764,0.62544408,239.57,239.41,23.776884]
[1733398318966,0.62544408,239.57,239.42,0.6262253]
[1733398319167,0.62544408,239.57,239.43,23.776884]
[1733398319368,0.62544408,239.58,239.43,23.776884]
[1733398319854,0.62544408,239.61,239.43,23.776884]
[1733398320044,0.62544408,239.61,239.44,0.62619949]
[1733398320489,0.62544408,239.61,239.43,23.776884]
[1733398320749,0.62544408,239.61,239.42,23.776884]
[1733398321161,23.776884,239.6,239.43,0.62621001]
[1733398321368,0.62544408,239.59,239.43,0.62621001]
[1733398321964,23.776884,239.58,239.43,0.62621001]
[1733398322142,0.62544408,239.57,239.4,0.62626771]
[1733398323365,23.776884,239.56,239.4,0.62626771]
[1733398323540,0.62544408,239.55,239.4,0.62626771]
[1733398323741,9.4674,239.55,239.39,0.4967167]
[1733398323967,24.40232808,239.54,239.39,0.4967167]
[1733398325172,9.4674,239.53,239.39,0.4967167]
[1733398325337,24.40232808,239.52,239.39,0.4967167]
[1733398328367,0.62544408,239.52,239.39,0.4967167]
[1733398328536,11.14231933,239.53,239.39,0.4967167]
[1733398328741,11.14231933,239.53,239.41,23.776884]
[1733398328742,9.4674,239.53,239.41,23.776884]
[1733398329964,9.4674,239.53,239.42,0.6262647]
[1733398330139,9.4674,239.53,239.43,23.776884]
[1733398331367,9.4674,239.53,239.45,23.776884]
[1733398332444,6.4476,239.53,239.44,23.776884]
[1733398332645,9.151,239.58,239.44,23.776884]
[1733398333365,9.151,239.58,239.46,23.776884]
[1733398334466,9.151,239.58,239.48,23.776884]
[1733398334944,9.151,239.58,239.5,23.776884]
[1733398335964,6.4928,239.64,239.5,23.776884]
[1733398336169,6.4928,239.64,239.52,23.776884]
[1733398336354,6.4928,239.64,239.53,0.62596019]
[1733398338263,6.4928,239.64,239.54,23.776884]
[1733398339380,3.316,239.65,239.54,23.776884]
[1733398339577,3.316,239.65,239.56,23.776884]
[1733398350377,0.62544408,239.64,239.46,20.0]
[1733398350568,0.62544408,239.64,239.47,0.62603755]
[1733398351687,0.62544408,239.64,239.48,159.476884]
[1733398351862,0.62544408,239.64,239.5,23.776884]
[1733398352062,0.62544408,239.64,239.51,0.62601604]
[1733398352286,0.62544408,239.64,239.52,23.776884]
[1733398353067,3.316,239.65,239.58,23.776884]
[1733398353272,6.4407,239.69,239.6,23.776884]
[1733398353688,6.4407,239.69,239.61,0.62582537]
[1733398353984,6.4407,239.69,239.62,23.776884]
[1733398355389,9.8254,239.77,239.63,13.16644784]
[1733398355576,9.8254,239.77,239.64,12.54067163]
[1733398355780,9.8254,239.77,239.65,0.62562564]
[1733398356180,9.8254,239.77,239.66,23.902374]
[1733398356386,9.2814,239.82,239.68,36.31755563]
[1733398356585,9.2814,239.82,239.69,0.62547021]
[1733398356889,0.62544408,239.81,239.67,135.7]
[1733398357187,0.62544408,239.81,239.62,135.7]
[1733398357496,0.62544408,239.81,239.63,0.62570322]
[1733398358165,23.776884,239.8,239.63,0.62570322]
[1733398358367,23.776884,239.78,239.63,0.62570322]
[1733398358579,0.62544408,239.77,239.63,0.62570322]
[1733398360779,23.776884,239.78,239.63,0.62570322]
[1733398361394,0.62544408,239.77,239.63,0.62570322]
[1733398362294,10.92503689,239.82,239.63,0.62570322]
[1733398362483,0.62544408,239.81,239.64,159.476884]
[1733398362794,0.62544408,239.81,239.65,0.62560104]
[1733398363397,9.2814,239.82,239.65,0.62560104]
[1733398363597,0.62544408,239.81,239.65,0.62560104]
[1733398363897,23.776884,239.8,239.64,135.7]
[1733398364082,23.776884,239.78,239.64,135.7]
[1733398364278,0.62544408,239.77,239.64,135.7]
[1733398364477,23.776884,239.76,239.54,141.8063]
[1733398364680,23.776884,239.73,239.57,0.62584874]
[1733398364893,0.62544408,239.72,239.57,0.62584874]
[1733398365595,0.62544408,239.72,239.55,0.62580381]
[1733398366096,0.62544408,239.72,239.57,20.0]
[1733398366270,23.776884,239.71,239.55,0.62580293]
[1733398366468,23.776884,239.69,239.55,0.62580293]
[1733398366690,23.776884,239.67,239.55,0.62580293]
[1733398367096,0.62544408,239.73,239.55,0.62580293]
[1733398367293,23.776884,239.72,239.55,0.62580293]
[1733398367592,0.62544408,239.71,239.56,0.6259272]
[1733398367776,23.776884,239.7,239.53,20.0]
[1733398367979,23.776884,239.68,239.54,0.62593485]
[1733398368282,27.076684,239.65,239.5,0.62600121]
[1733398368472,0.62544408,239.64,239.5,0.62600121]
[1733398369190,0.62544408,239.64,239.51,0.62604044]
[1733398370279,0.62544408,239.64,239.5,23.776884]
[1733398370480,0.62544408,239.64,239.51,0.62605459]
[1733398371380,0.62544408,239.64,239.52,0.62605306]
[1733398371581,0.62544408,239.64,239.48,23.776884]
[1733398371782,0.62544408,239.64,239.49,0.62605302]
[1733398376989,23.776884,239.63,239.47,0.6261017]
[1733398377190,0.62544408,239.62,239.47,0.6261017]
[1733398377688,23.776884,239.61,239.47,0.6261017]
[1733398377885,0.62544408,239.6,239.47,0.6261017]
[1733398378084,0.62544408,239.6,239.45,0.62617048]
[1733398378287,3.2998,239.65,239.49,0.12549]
[1733398378492,3.92524408,239.65,239.5,0.62598762]
[1733398378991,3.92524408,239.65,239.51,23.776884]
[1733398379902,3.92524408,239.65,239.52,0.62600629]
[1733398383200,3.2998,239.65,239.53,23.776884]
[1733398383403,3.2998,239.65,239.54,0.62590824]
[1733398385210,0.62544408,239.64,239.54,0.62590824]
[1733398385707,3.92524408,239.65,239.54,0.62590824]
[1733398385880,3.2998,239.65,239.54,0.62590824]
[1733398387912,3.92524408,239.65,239.54,0.62590824]
[1733398388210,3.2998,239.65,239.54,0.62590824]
[1733398389696,3.2998,239.65,239.5,23.776884]
[1733398389992,3.2998,239.65,239.52,23.776884]
[1733398390203,3.2998,239.65,239.53,0.6259521]
[1733398390890,3.1296,239.7,239.56,12.54067163]
[1733398391110,3.1296,239.7,239.57,24.40264791]
[1733398395544,3.1296,239.7,239.57,160.10264791]
[1733398395700,3.1296,239.7,239.57,159.476884]
[1733398396302,3.07314187,239.7,239.57,159.476884]
[1733398396904,3.07314187,239.7,239.59,23.776884]
[1733398397103,3.07314187,239.7,239.6,0.62578269]
[1733398397302,3.07314187,239.7,239.61,23.776884]
[1733398397892,3.07314187,239.7,239.62,0.62574454]
[1733398401292,3.07314187,239.7,239.63,23.776884]
[1733398401602,3.07314187,239.7,239.64,0.62566217]
[1733398401800,1.70889861,239.74,239.64,0.62566217]
[1733398402008,3.2871,239.77,239.64,0.62566217]
[1733398402695,0.62544408,239.76,239.62,23.776884]
[1733398403235,3.2871,239.77,239.64,23.776884]
[1733398403531,3.2871,239.77,239.65,0.62566538]
[1733398404002,4.98495395,239.77,239.65,0.62566538]
[1733398404404,0.62544408,239.76,239.65,0.62566538]
[1733398404704,4.98495395,239.77,239.65,0.62566538]
[1733398406232,4.98495395,239.77,239.62,135.7]
[1733398406532,4.98495395,239.77,239.63,0.62568082]
[1733398408532,0.62544408,239.76,239.63,0.62568082]
[1733398410729,0.62544408,239.76,239.6,0.62570821]
[1733398411939,0.62544408,239.76,239.61,8.02184477]
[1733398412238,0.62544408,239.76,239.62,0.6256982]
[1733398412435,4.98495395,239.77,239.65,8.02184477]
[1733398412635,3.2871,239.77,239.66,0.62560771]
[1733398413630,3.2871,239.77,239.66,136.32560771]
[1733398413912,3.2871,239.77,239.66,135.7]
[1733398414333,3.2871,239.77,239.67,23.776884]
[1733398414538,3.2871,239.77,239.68,0.62555558]
[1733398415226,3.2871,239.77,239.66,135.7]
[1733398416607,3.2871,239.77,239.63,23.776884]
[1733398416812,3.2871,239.77,239.64,8.64748982]
[1733398417841,3.2871,239.77,239.64,0.62564505]
[1733398418438,3.2871,239.77,239.65,23.902374]
[1733398418622,3.2871,239.77,239.67,23.776884]
[1733398419121,3.2871,239.77,239.68,0.62557479]
[1733398420319,3.2964,239.92,239.7,143.72184477]
[1733398420540,0.62544408,239.91,239.71,24.40233313]
[1733398420721,9.9063,239.9,239.71,24.40233313]
[1733398421047,0.62544408,239.89,239.71,24.40233313]
[1733398421414,0.62544408,239.89,239.71,32.4241779]
[1733398421614,0.62544408,239.89,239.71,24.40233313]
[1733398422745,23.776884,239.88,239.71,24.40233313]
[1733398422910,0.62544408,239.87,239.71,24.40233313]
[1733398425735,0.62544408,239.87,239.71,0.62544913]
[1733398425920,23.776884,239.86,239.71,0.62544913]
[1733398426119,0.62544408,239.85,239.71,0.62544913]
[1733398427733,3.2321,239.84,239.71,0.62544913]
[1733398427936,6.2561,239.82,239.67,0.62552765]
[1733398428139,0.62544408,239.81,239.67,0.62552765]
[1733398429318,6.2561,239.82,239.67,8.64737242]
[1733398429521,0.62544408,239.81,239.67,8.64737242]
[1733398429728,0.62544408,239.81,239.67,0.62552765]
[1733398430826,6.2561,239.82,239.67,8.64737242]
[1733398431023,0.62544408,239.81,239.67,8.64737242]
[1733398432142,6.2561,239.82,239.68,23.776884]
[1733398432143,7.90909338,239.82,239.68,23.776884]
[1733398432318,7.90909338,239.82,239.69,0.6255064]
[1733398436245,7.90909338,239.82,239.69,8.64735117]
[1733398436420,6.2561,239.82,239.7,23.776884]
[1733398436620,6.2561,239.82,239.71,0.62544952]
[1733398437426,3.2321,239.84,239.71,0.62544952]
[1733398437625,3.2321,239.84,239.73,8.02184477]
[1733398437855,3.2321,239.84,239.74,23.776884]
[1733398440253,3.2321,239.84,239.76,23.776884]
[1733398440437,3.2321,239.84,239.76,143.84733477]
[1733398440642,3.2321,239.84,239.77,23.776884]
[1733398440952,6.2067,239.88,239.77,23.776884]
[1733398441254,7.92065577,239.88,239.77,23.776884]
[1733398443233,7.92065577,239.88,239.76,135.7]
[1733398443856,0.62544408,239.87,239.71,3.128]
[1733398444056,0.62544408,239.87,239.84,0.16170837]
[1733398450764,4219.84671895,240.0,239.81,143.72184477]
[1733398450765,9.7689,239.95,239.81,143.72184477]
[1733398451141,9.7689,239.95,239.82,23.776884]
[1733398452274,9.7689,239.95,239.83,8.02184477]
[1733398452580,9.7689,239.95,239.82,23.776884]
[1733398453761,9.7689,239.95,239.81,135.7]
[1733398455361,9.7689,239.95,239.82,8.02184477]
[1733398456377,9.7689,239.95,239.81,135.7]
[1733398456957,3.1026,239.95,239.84,143.72184477]
[1733398457644,0.62544408,239.99,239.84,143.72184477]
[1733398457848,0.62544408,239.99,239.85,20.0]
[1733398458073,0.62544408,239.99,239.84,8.02184477]
[1733398458775,0.62544408,239.99,239.85,20.0]
[1733398459184,23.776884,239.98,239.83,8.02184477]
[1733398460882,23.776884,239.98,239.85,28.02184477]
[1733398461269,23.776884,239.98,239.85,8.02184477]
[1733398461579,0.62544408,239.99,239.85,20.0]
[1733398461763,0.62544408,239.99,239.85,8.02184477]
[1733398462169,0.62544408,239.99,239.85,20.0]
[1733398462684,23.776884,239.98,239.85,20.0]
[1733398462869,0.62544408,239.97,239.85,20.0]
[1733398463071,24.40232808,239.99,239.85,20.0]
[1733398466473,23.776884,239.99,239.85,20.0]
[1733398466682,0.62544408,239.99,239.85,20.0]
[1733398466876,0.62544408,239.99,239.86,8.02184477]
[1733398467082,4139.99715811,240.0,239.86,8.02184477]
[1733398467471,4138.34671895,240.0,239.85,20.0]
[1733398467787,4138.34671895,240.0,239.85,163.72184477]
[1733398471389,24.40232808,239.99,239.85,155.7]
[1733398471568,23.776884,239.97,239.85,155.7]
[1733398471763,24.40232808,239.97,239.85,155.7]
[1733398472087,24.40232808,239.97,239.82,135.7]
[1733398476796,24.40232808,239.97,239.81,8.02184477]
[1733398477609,24.40232808,239.97,239.8,135.7]
[1733398478202,24.40232808,239.97,239.78,139.0111]
[1733398478499,24.40232808,239.97,239.78,135.7]
[1733398481596,24.40232808,239.97,239.76,135.7]
[1733398484014,3.1225,239.96,239.76,135.7]
[1733398484304,23.776884,239.94,239.76,135.7]
[1733398484601,23.776884,239.92,239.75,143.72184477]
[1733398484797,0.62544408,239.91,239.75,143.72184477]
[1733398485195,23.776884,239.9,239.78,8.02184477]
[1733398485509,23.776884,239.9,239.76,8.64716538]
[1733398485713,23.776884,239.9,239.76,8.02184477]
[1733398487611,23.776884,239.9,239.75,135.7]
[1733398487801,23.776884,239.9,239.76,8.02184477]
[1733398488478,2.27976106,239.95,239.77,24.153354]
[1733398488684,0.62544408,239.95,239.77,135.7]
[1733398488896,0.62544408,239.95,239.77,143.72184477]
[1733398489916,23.776884,239.94,239.77,135.7]
[1733398490114,23.776884,239.92,239.77,135.7]
[1733398490317,23.776884,239.92,239.77,143.72184477]
[1733398490717,23.776884,239.94,239.77,135.7]
[1733398491016,23.776884,239.92,239.77,135.7]
[1733398491918,23.776884,239.94,239.77,143.72184477]
[1733398492136,23.776884,239.92,239.77,143.72184477]
[1733398492295,23.776884,239.92,239.78,8.02184477]
[1733398492701,0.62544408,239.95,239.78,8.02184477]
[1733398492702,23.776884,239.94,239.78,8.02184477]
[1733398493497,23.776884,239.95,239.78,8.02184477]
[1733398494597,5.38556355,239.96,239.8,8.02184477]
[1733398494799,4.76011947,239.96,239.8,8.02184477]
[1733398495631,4.76011947,239.96,239.82,143.72184477]
[1733398496211,3.1225,239.96,239.82,143.72184477]
[1733398511944,3.1225,239.96,239.82,135.7]
[1733398514138,3.1225,239.96,239.82,135.2]
[1733398514346,24.40232808,239.95,239.82,135.2]
[1733398514723,23.776884,239.95,239.82,135.2]
[1733398514923,3.1225,239.96,239.82,143.22184477]
[1733398516643,3.1225,239.96,239.83,23.902374]
[1733398516816,3.1225,239.96,239.84,8.02184477]
[1733398518846,3.1225,239.96,239.84,143.22184477]
[1733398519446,3.1667,240.02,239.87,135.2]
[1733398520154,0.62544408,239.99,239.87,135.2]
[1733398520660,23.776884,239.98,239.87,135.2]
[1733398522147,23.776884,239.98,239.83,3.2768]
[1733398522351,33.523284,239.96,239.81,135.2]
[1733398522528,23.776884,239.94,239.81,135.2]
[1733398522733,23.776884,239.92,239.76,135.2]
[1733398522945,23.776884,239.9,239.76,135.2]
[1733398524048,23.776884,239.9,239.76,143.22184477]
[1733398524255,23.776884,239.9,239.76,135.2]
[1733398525032,23.776884,239.88,239.75,20.0]
[1733398525260,3.1799,239.89,239.76,0.62540045]
[1733398525628,3.1799,239.89,239.75,20.0]
[1733398525936,6.434,239.88,239.73,0.6253511]
[1733398526144,6.434,239.88,239.73,8.64719587]
[1733398526730,23.776884,239.87,239.73,8.64719587]
[1733398527134,23.776884,239.87,239.73,0.6253511]
[1733398527848,0.62544408,239.86,239.68,8.02184477]
[1733398528040,0.62544408,239.86,239.67,155.2]
[1733398528041,3.1643,239.84,239.69,0.62554278]
[1733398528346,23.776884,239.82,239.63,138.2812]
[1733398528646,23.776884,239.8,239.64,0.62564653]
[1733398528836,3.62484408,239.79,239.64,0.62564653]
[1733398529043,23.776884,239.78,239.62,135.2]
[1733398529244,23.776884,239.76,239.62,135.2]
[1733398529436,2.9994,239.79,239.63,0.62573647]
[1733398529642,24.40232808,239.78,239.63,0.62573647]
[1733398530265,2.9994,239.79,239.67,8.02184477]
[1733398530562,2.9994,239.79,239.68,0.62555181]
[1733398532237,23.776884,239.78,239.64,0.62558288]
[1733398532439,23.776884,239.78,239.64,8.64742765]
[1733398532649,0.62544408,239.77,239.64,8.64742765]
[1733398533245,23.776884,239.76,239.64,0.62558288]
[1733398533438,23.776884,239.76,239.56,3.0902]
[1733398533439,23.776884,239.74,239.6,8.02184477]
[1733398533665,23.776884,239.74,239.61,8.64759319]
[1733398534344,9.0825,239.73,239.61,0.62574842]
[1733398534546,23.776884,239.72,239.57,8.02184477]
[1733398534757,23.776884,239.7,239.58,0.62587081]
[1733398535362,23.776884,239.72,239.58,0.62587081]
[1733398535551,23.776884,239.7,239.58,0.62587081]
[1733398536178,3.1688,239.67,239.53,135.2]
[1733398536462,3.79424408,239.67,239.54,0.62594114]
[1733398536858,6.3514,239.66,239.54,0.62594114]
[1733398537048,24.40232808,239.65,239.45,0.62603672]
[1733398537250,24.40232808,239.65,239.5,8.02184477]
[1733398537560,24.40232808,239.65,239.51,0.62601347]
[1733398539171,6.3514,239.66,239.52,8.02184477]
[1733398539357,6.3514,239.66,239.53,0.62592964]
[1733398539665,3.1688,239.67,239.58,8.02184477]
[1733398539869,6.2677,239.71,239.6,8.02184477]
[1733398540183,6.2677,239.71,239.61,0.62574815]
[1733398542860,6.2677,239.71,239.61,8.64759292]
[1733398543983,6.2677,239.71,239.63,8.02184477]
[1733398544155,6.2677,239.71,239.64,0.62572159]
[1733398545055,6.2677,239.71,239.62,0.62576176]
[1733398545256,3.0937,239.8,239.67,8.02184477]
[1733398545459,3.0937,239.8,239.68,0.62561034]
[1733398546375,0.62544408,239.79,239.68,0.62561034]
[1733398546684,0.62544408,239.79,239.66,12.52898122]
[1733398546685,23.776884,239.78,239.66,0.62565113]
[1733398546981,23.776884,239.76,239.66,0.62565113]
[1733398547581,23.776884,239.78,239.66,0.62565113]
[1733398547773,23.776884,239.76,239.66,0.62565113]
[1733398548560,23.776884,239.74,239.64,0.62570425]
[1733398548766,23.776884,239.74,239.55,138.3438]
[1733398548767,0.62544408,239.73,239.61,12.52898122]
[1733398548964,0.62544408,239.79,239.64,13.15474691]
[1733398549173,23.776884,239.78,239.64,13.15474691]
[1733398549355,0.62544408,239.77,239.64,13.15474691]
[1733398549553,23.776884,239.76,239.64,0.62576569]
[1733398549869,0.62544408,239.75,239.65,0.62573143]
[1733398550173,23.776884,239.76,239.65,0.62573143]
[1733398550383,0.62544408,239.75,239.65,0.62573143]
[1733398550559,0.62544408,239.78,239.65,0.62573143]
[1733398550882,23.776884,239.77,239.64,0.62571819]
[1733398551073,23.776884,239.75,239.64,0.62571819]
[1733398551577,23.776884,239.75,239.65,4.167]
[1733398551771,23.776884,239.75,239.66,0.62566851]
[1733398552557,0.62544408,239.79,239.66,0.62566851]
[1733398552863,0.62544408,239.79,239.66,17.32164973]
[1733398553054,3.0937,239.8,239.66,17.32164973]
[1733398554294,23.776884,239.79,239.66,17.32164973]
[1733398554481,3.0937,239.8,239.69,4.167]
[1733398554786,3.0937,239.8,239.7,0.62555563]
[1733398555162,1.65383178,239.92,239.8,4.167]
[1733398555369,3.0553,239.93,239.8,4.167]
[1733398555574,3.0553,239.93,239.82,4.167]
[1733398557686,23.776884,239.92,239.8,4.167]
[1733398558856,23.776884,239.92,239.79,4.167]
[1733398559865,23.776884,239.92,239.8,4.167]
[1733398560990,23.776884,239.92,239.77,4.7922497]
[1733398563457,23.776884,239.92,239.79,4.167]
[1733398563660,3.0553,239.93,239.79,4.167]
[1733398565193,23.776884,239.92,239.79,4.167]
[1733398565981,1.69918945,239.97,239.81,4.167]
[1733398566177,9.4603,239.99,239.81,4.167]
[1733398567698,23.776884,239.98,239.81,4.167]
[1733398570725,23.776884,239.98,239.77,4.167]
[1733398571499,23.776884,239.98,239.74,12.52898122]
[1733398571500,23.776884,239.98,239.75,4.167]
[1733398572818,23.776884,239.98,239.74,4.167]
[1733398573114,23.776884,239.98,239.74,16.69598122]
[1733398573317,23.776884,239.98,239.74,4.167]
[1733398573516,11.16937376,239.99,239.74,0.37762622]